fUST/lending_fUST_20260211
["ID","MTS","AMOUNT","RATE_DAILY","PERIOD"]
[405094224,1770793840527,-500.0,0.00038356,120]
[405094225,1770793840537,-500.0,0.00038356,30]
[405094227,1770793840547,-14665.39,0.00038356,120]
[405094229,1770793840556,-500.0,0.00038356,120]
[405094231,1770793840566,-500.0,0.00038356,120]
[405094233,1770793840576,-500.0,0.00038356,120]
[405094235,1770793840585,-500.0,0.00038356,120]
[405094237,1770793840594,-500.0,0.00038356,120]
[405094239,1770793840603,-500.0,0.00038356,120]
[405094241,1770793840612,-500.0,0.00038356,120]
[405094243,1770793840621,-500.0,0.00038356,120]
[405094245,1770793840631,-645.92611005,0.00038356,120]
[405094247,1770793840640,-14163.98,0.00038356,120]
[405094249,1770793840650,-500.0,0.00038356,8]
[405094251,1770793840660,-558.56,0.00038356,120]
[405094253,1770793840670,-385.48229166,0.00038356,120]
[405094255,1770793840679,-162.65832985,0.00038356,120]
[405094257,1770793840690,-500.0,0.00038356,120]
[405094259,1770793840704,-4342.85,0.00038356,21]
[405094261,1770793840714,-1856.36,0.00038356,120]
[405094263,1770793840724,-500.0,0.00038356,120]
[405094265,1770793840734,-5194.04,0.00038356,2]
[405094267,1770793840743,-500.0,0.00038356,120]
[405094269,1770793840753,-500.0,0.00038356,120]
[405094271,1770793840763,-500.0,0.00038356,120]
[405094273,1770793840773,-1000.0,0.00038356,2]
[405094275,1770793840782,-500.0,0.00038356,120]
[405094277,1770793840791,-503.98507126,0.00038356,120]
[405094279,1770793840800,-500.0,0.00038356,120]
[405094281,1770793840811,-524.65,0.00038356,120]
[405094283,1770793840821,-500.0,0.00038356,120]
[405094285,1770793840831,-500.0,0.00038356,120]
[405094287,1770793840841,-500.0,0.00038356,120]
[405094289,1770793840850,-507.73356918,0.00038356,120]
[405094291,1770793840860,-63868.37,0.00038356,20]
[405094293,1770793840870,-520.94533408,0.00038356,120]
[405094295,1770793840880,-500.0,0.00038356,120]
[405094297,1770793840890,-513.13439944,0.00038356,120]
[405094299,1770793840899,-500.0,0.00038356,120]
[405094301,1770793840909,-500.0,0.00038356,120]
[405094303,1770793840919,-377.22797098,0.00038356,120]
[405094305,1770793840928,-798.59,0.00038356,120]
[405094307,1770793840938,-562.82376789,0.00038356,30]
[405094309,1770793840947,-500.0,0.00038356,120]
[405094311,1770793840957,-500.0,0.00038356,120]
[405094313,1770793840967,-500.0,0.00038356,120]
[405094315,1770793840977,-730.1,0.00038356,30]
[405094317,1770793840987,-500.0,0.00038356,120]
[405094319,1770793840997,-500.0,0.00038356,120]
[405094321,1770793841007,-609.15,0.00038356,120]
[405094323,1770793841016,-2499.89,0.00038356,120]
[405094325,1770793841026,-332.24,0.00038356,120]
[405094327,1770793841035,-3195.37,0.00038356,2]
[405094329,1770793841044,-799.25,0.00038356,120]
[405094331,1770793841053,-500.0,0.00038356,120]
[405094333,1770793841063,-342.0543997,0.00038356,120]
[405094335,1770793841072,-151.0,0.00038356,120]
[405094337,1770793841082,-199.153698,0.00038356,120]
[405094339,1770793841091,-151.0,0.00038356,120]
[405094341,1770793841101,-151.0,0.00038356,120]
[405094343,1770793841110,-151.0,0.00038356,120]
[405094345,1770793841120,-151.0,0.00038356,120]
[405094347,1770793841129,-151.0,0.00038356,120]
[405094349,1770793841138,-151.0,0.00038356,120]
[405094350,1770793841147,-151.0,0.00038356,120]
[405094352,1770793841157,-151.0,0.00038356,120]
[405094354,1770793841166,-284.525161,0.00038356,120]
[405094357,1770793841179,-151.0,0.00038356,120]
[405094359,1770793841190,-151.0,0.00038356,120]
[405094361,1770793841202,-151.0,0.00038356,120]
[405094363,1770793841211,-151.0,0.00038356,120]
[405094365,1770793841220,-151.0,0.00038356,120]
[405094367,1770793841231,-151.0,0.00038356,120]
[405094368,1770793841240,-151.0,0.00038356,120]
[405094369,1770793841250,-151.0,0.00038356,120]
[405094370,1770793841260,-151.0,0.00038356,120]
[405094371,1770793841277,-151.0,0.00038356,120]
[405094372,1770793841286,-151.0,0.00038356,120]
[405094373,1770793841295,-151.0,0.00038356,120]
[405094374,1770793841304,-151.0,0.00038356,120]
[405094375,1770793841314,-151.0,0.00038356,120]
[405094376,1770793841324,-151.0,0.00038356,120]
[405094377,1770793841333,-151.0,0.00038356,120]
[405094378,1770793841343,-238.632788,0.00038356,120]
[405094379,1770793841353,-151.0,0.00038356,120]
[405094380,1770793841363,-151.0,0.00038356,120]
[405094381,1770793841373,-151.0,0.00038356,120]
[405094382,1770793841383,-151.0,0.00038356,120]
[405094383,1770793841393,-216.464888,0.00038356,120]
[405094384,1770793841403,-388.611562,0.00038356,120]
[405094385,1770793841412,-388.611562,0.00038356,120]
[405094386,1770793841422,-388.611562,0.00038356,120]
[405094387,1770793841431,-388.611562,0.00038356,120]
[405094388,1770793841441,-388.611562,0.00038356,120]
[405094389,1770793841450,-388.611562,0.00038356,120]
[405094390,1770793841460,-388.611562,0.00038356,120]
[405094391,1770793841470,-151.0,0.00038356,120]
[405094392,1770793841479,-388.611562,0.00038356,120]
[405094393,1770793841488,-151.0,0.00038356,120]
[405094394,1770793841498,-388.611562,0.00038356,120]
[405094395,1770793841507,-388.611562,0.00038356,120]
[405094396,1770793841516,-151.0,0.00038356,120]
[405094397,1770793841526,-388.611562,0.00038356,120]
[405094398,1770793841536,-164.601514,0.00038356,120]
[405094399,1770793841545,-388.611562,0.00038356,120]
[405094400,1770793841555,-388.611562,0.00038356,120]
[405094401,1770793841564,-388.611562,0.00038356,120]
[405094402,1770793841574,-388.611562,0.00038356,120]
[405094403,1770793841583,-388.611562,0.00038356,120]
[405094404,1770793841659,-388.611562,0.00038356,120]
[405094405,1770793841669,-388.611562,0.00038356,120]
[405094406,1770793841678,-388.611562,0.00038356,120]
[405094407,1770793841687,-388.611571,0.00038356,120]
[405094408,1770793841697,-537.42719,0.00038356,120]
[405094409,1770793841706,-537.42719,0.00038356,120]
[405094410,1770793841715,-537.42719,0.00038356,120]
[405094411,1770793841725,-537.42719,0.00038356,120]
[405094412,1770793841734,-537.42719,0.00038356,120]
[405094413,1770793841743,-537.42719,0.00038356,120]
[405094414,1770793841753,-537.42719,0.00038356,120]
[405094415,1770793841763,-537.42719,0.00038356,120]
[405094416,1770793841774,-537.42719,0.00038356,120]
[405094417,1770793841784,-537.42719,0.00038356,120]
[405094418,1770793841793,-537.42719,0.00038356,120]
[405094419,1770793841802,-537.42719,0.00038356,120]
[405094420,1770793841812,-537.42719,0.00038356,120]
[405094421,1770793841821,-537.42719,0.00038356,120]
[405094422,1770793841831,-537.42719,0.00038356,120]
[405094423,1770793841841,-537.42719,0.00038356,120]
[405094424,1770793841850,-151.000012,0.00038356,120]
[405094425,1770793841860,-263.103112,0.00038356,120]
[405094426,1770793841869,-263.103112,0.00038356,120]
[405094427,1770793841879,-263.103112,0.00038356,120]
[405094428,1770793841888,-263.103112,0.00038356,120]
[405094429,1770793841897,-263.103112,0.00038356,120]
[405094430,1770793841907,-151.0,0.00038356,120]
[405094431,1770793841917,-263.103112,0.00038356,120]
[405094432,1770793841927,-151.0,0.00038356,120]
[405094433,1770793841937,-263.103112,0.00038356,120]
[405094434,1770793841946,-263.103112,0.00038356,120]
[405094435,1770793841956,-151.0,0.00038356,120]
[405094436,1770793841965,-263.103112,0.00038356,120]
[405094437,1770793841976,-191.387015,0.00038356,120]
[405094438,1770793841986,-263.103112,0.00038356,120]
[405094439,1770793841996,-263.103112,0.00038356,120]
[405094440,1770793842006,-263.103112,0.00038356,120]
[405094441,1770793842015,-263.103112,0.00038356,120]
[405094442,1770793842026,-263.103112,0.00038356,120]
[405094443,1770793842036,-263.103112,0.00038356,120]
[405094444,1770793842046,-263.103112,0.00038356,120]
[405094445,1770793842055,-151.0,0.00038356,120]
[405094446,1770793842064,-151.0,0.00038356,120]
[405094447,1770793842074,-151.0,0.00038356,120]
[405094448,1770793842083,-151.0,0.00038356,120]
[405094449,1770793842092,-151.0,0.00038356,120]
[405094450,1770793842102,-151.0,0.00038356,120]
[405094451,1770793842111,-151.0,0.00038356,120]
[405094452,1770793842120,-151.0,0.00038356,120]
[405094453,1770793842129,-161.154215,0.00038356,120]
[405094454,1770793842141,-151.0,0.00038356,120]
[405094455,1770793842151,-151.0,0.00038356,120]
[405094456,1770793842163,-151.0,0.00038356,10]
[405094457,1770793842175,-151.0,0.00038356,10]
[405094458,1770793842186,-151.0,0.00038356,120]
[405094459,1770793842201,-151.0,0.00038356,120]
[405094460,1770793842213,-151.0,0.00038356,120]
[405094461,1770793842222,-158.222729,0.00038356,120]
[405094462,1770793842240,-151.0,0.00038356,120]
[405094463,1770793842249,-151.0,0.00038356,120]
[405094464,1770793842259,-151.0,0.00038356,120]
[405094465,1770793842270,-151.0,0.00038356,120]
[405094466,1770793842279,-151.0,0.00038356,120]
[405094467,1770793842288,-151.0,0.00038356,120]
[405094468,1770793842298,-151.0,0.00038356,120]
[405094469,1770793842308,-151.0,0.00038356,120]
[405094470,1770793842317,-151.0,0.00038356,120]
[405094471,1770793842326,-151.0,0.00038356,120]
[405094472,1770793842335,-151.0,0.00038356,120]
[405094473,1770793842344,-151.0,0.00038356,120]
[405094474,1770793842353,-151.0,0.00038356,120]
[405094475,1770793842362,-151.0,0.00038356,120]
[405094476,1770793842372,-151.0,0.00038356,120]
[405094477,1770793842382,-151.0,0.00038356,120]
[405094478,1770793842391,-151.0,0.00038356,120]
[405094479,1770793842400,-151.0,0.00038356,120]
[405094480,1770793842409,-183.908704,0.00038356,120]
[405094481,1770793842418,-151.0,0.00038356,120]
[405094482,1770793842427,-163.912504,0.00038356,120]
[405094483,1770793842436,-401.0,0.00038367,11]
[405094484,1770793842446,-168.0,0.0003838,2]
[405094485,1770793842455,-722.0,0.0003839,11]
[405094486,1770793842465,-401.0,0.00038393,11]
[405094487,1770793842474,-423.0,0.00038473,2]
[405094488,1770793842484,-1000.0,0.000385,15]
[405094489,1770793842493,-740.3754691,0.00038551,2]
[405094490,1770793842502,-400.0,0.00038573,11]
[405094491,1770793842512,-6571.03996026,0.0003862,3]
[405094492,1770793842524,-500.0,0.0003863,120]
[405094493,1770793842533,-500.0,0.0003863,120]
[405094494,1770793842543,-500.0,0.0003863,120]
[405094495,1770793842552,-500.0,0.0003863,120]
[405094496,1770793842563,-500.0,0.0003863,120]
[405094497,1770793842572,-500.0,0.0003863,120]
[405094498,1770793842582,-539.43,0.0003863,120]
[405094499,1770793842591,-500.0,0.0003863,120]
[405094500,1770793842601,-256.80235301,0.0003863,120]
[405094501,1770793842611,-500.0,0.0003863,120]
[405094502,1770793842621,-1738.1,0.0003863,120]
[405094503,1770793842630,-500.0,0.0003863,53]
[405094504,1770793842640,-500.0,0.0003863,120]
[405094505,1770793842650,-500.0,0.0003863,2]
[405094506,1770793842660,-339.854804,0.0003863,120]
[405094507,1770793842669,-500.0,0.0003863,120]
[405094508,1770793842679,-500.0,0.0003863,120]
[405094509,1770793842688,-500.0,0.0003863,120]
[405094510,1770793842697,-500.0,0.0003863,120]
[405094511,1770793842706,-731.74,0.0003863,120]
[405094512,1770793842716,-500.0,0.0003863,120]
[405094513,1770793842726,-500.0,0.0003863,120]
[405094514,1770793842735,-500.0,0.0003863,120]
[405094515,1770793842745,-500.0,0.0003863,14]
[405094516,1770793842754,-519.95,0.0003863,120]
[405094517,1770793842764,-513.83,0.0003863,120]
[405094518,1770793842774,-500.0,0.0003863,120]
[405094519,1770793842784,-500.0,0.0003863,120]
[405094521,1770793842794,-500.0,0.0003863,120]
[405094522,1770793842803,-500.0,0.0003863,120]
[405094523,1770793842813,-723.59,0.0003863,120]
[405094524,1770793842823,-500.0,0.0003863,120]
[405094525,1770793842832,-500.0,0.0003863,120]
[405094526,1770793842842,-500.06696682,0.0003863,120]
[405094527,1770793842851,-500.0,0.0003863,120]
[405094528,1770793842861,-500.0,0.0003863,120]
[405094529,1770793842870,-500.0,0.0003863,2]
[405094530,1770793842880,-919.03,0.0003863,120]
[405094531,1770793842889,-500.0,0.0003863,120]
[405094532,1770793842899,-851.78,0.0003863,120]
[405094533,1770793842909,-500.0,0.0003863,120]
[405094534,1770793842918,-500.0,0.0003863,120]
[405094535,1770793842927,-500.0,0.0003863,120]
[405094536,1770793842937,-500.0,0.0003863,120]
[405094537,1770793842946,-500.0,0.0003863,120]
[405094538,1770793842956,-705.77,0.0003863,120]
[405094539,1770793842966,-500.0,0.0003863,7]
[405094540,1770793842976,-523.04887885,0.0003863,120]
[405094541,1770793842985,-156.06979773,0.0003863,120]
[405094542,1770793842995,-500.0,0.0003863,120]
[405094543,1770793843004,-799.4,0.0003863,120]
[405094544,1770793843014,-614.57952439,0.0003863,120]
[405094545,1770793843024,-500.0,0.0003863,120]
[405094546,1770793843034,-832.03,0.0003863,120]
[405094547,1770793843045,-500.0,0.0003863,120]
[405094548,1770793843054,-500.0,0.0003863,120]
[405094549,1770793843064,-635.94332261,0.0003863,120]
[405094550,1770793843074,-468.19657843,0.0003863,30]
[405094551,1770793843083,-14665.39,0.0003863,120]
[405094552,1770793843092,-541.20176041,0.0003863,120]
[405094553,1770793843101,-217.86632683,0.0003863,120]
[405094554,1770793843111,-433.95182441,0.0003863,120]
[405094555,1770793843120,-500.0,0.0003863,120]
[405094556,1770793843130,-500.0,0.0003863,120]
[405094557,1770793843139,-500.0,0.0003863,120]
[405094558,1770793843149,-173.66747612,0.0003863,120]
[405094559,1770793843162,-500.0,0.0003863,120]
[405094560,1770793843241,-537.42719,0.0003863,120]
[405094561,1770793843251,-537.42719,0.0003863,120]
[405094562,1770793843261,-537.42719,0.0003863,120]
[405094563,1770793843271,-14163.98,0.0003863,120]
[405094564,1770793843281,-500.0,0.0003863,8]
[405094565,1770793843290,-558.56,0.0003863,120]
[405094566,1770793843301,-537.427184,0.0003863,120]
[405094567,1770793843311,-263.103112,0.0003863,120]
[405094568,1770793843320,-151.0,0.0003863,120]
[405094569,1770793843330,-263.103112,0.0003863,120]
[405094570,1770793843340,-263.103112,0.0003863,120]
[405094571,1770793843350,-263.103109,0.0003863,120]
[405094572,1770793843360,-151.0,0.0003863,120]
[405094573,1770793843370,-285.861472,0.0003863,120]
[405094574,1770793843380,-483.44701908,0.0003863,120]
[405094575,1770793843389,-4342.85,0.0003863,21]
[405094576,1770793843398,-1856.36,0.0003863,120]
[405094577,1770793843407,-500.0,0.0003863,120]
[405094578,1770793843416,-5194.04,0.0003863,2]
[405094579,1770793843426,-500.0,0.0003863,120]
[405094580,1770793843435,-500.0,0.0003863,120]
[405094581,1770793843444,-500.0,0.0003863,120]
[405094582,1770793843454,-1000.0,0.0003863,2]
[405094583,1770793843464,-500.0,0.0003863,120]
[405094584,1770793843473,-500.0,0.0003863,120]
[405094585,1770793843484,-524.65,0.0003863,120]
[405094586,1770793843494,-500.0,0.0003863,120]
[405094587,1770793843503,-500.0,0.0003863,120]
[405094588,1770793843513,-500.0,0.0003863,120]
[405094589,1770793843522,-63868.37,0.0003863,20]
[405094590,1770793843532,-500.0,0.0003863,120]
[405094591,1770793843541,-500.0,0.0003863,120]
[405094592,1770793843551,-500.0,0.0003863,120]
[405094593,1770793843560,-798.59,0.0003863,120]
[405094594,1770793843570,-500.0,0.0003863,120]
[405094595,1770793843579,-500.0,0.0003863,120]
[405094596,1770793843588,-500.0,0.0003863,120]
[405094597,1770793843598,-730.1,0.0003863,30]
[405094598,1770793843607,-232.69087128,0.0003863,120]
[405094599,1770793843617,-500.0,0.0003863,120]
[405094600,1770793843626,-609.15,0.0003863,120]
[405094601,1770793843635,-2499.89,0.0003863,120]
[405094602,1770793843645,-332.24,0.0003863,120]
[405094603,1770793843655,-3195.37,0.0003863,2]
[405094604,1770793843664,-799.25,0.0003863,120]
[405094605,1770793843673,-500.0,0.0003863,120]
[405094606,1770793843683,-401.0,0.00038715,11]
[405094607,1770793843692,-711.0,0.00038716,11]
[405094608,1770793843701,-712.0,0.00038716,11]
[405094609,1770793843711,-600.0,0.0003873,60]
[405094610,1770793843721,-540.14,0.000388,30]
[405094611,1770793843731,-401.0,0.00038804,11]
[405094612,1770793843740,-501.079,0.00038846,7]
[405094613,1770793843749,-1141.6669959,0.00038868,2]
[405094614,1770793843759,-10795.28198754,0.000389,2]
[405094615,1770793843768,-8286.47042701,0.000389,2]
[405094616,1770793843779,-1390.18,0.00038904,120]
[405094617,1770793843788,-634.898109,0.00038904,120]
[405094618,1770793843798,-500.0,0.00038904,120]
[405094619,1770793843808,-500.0,0.00038904,120]
[405094620,1770793843818,-500.0,0.00038904,120]
[405094621,1770793843827,-500.0,0.00038904,120]
[405094622,1770793843837,-539.43,0.00038904,120]
[405094623,1770793843847,-500.0,0.00038904,120]
[405094624,1770793843856,-500.0,0.00038904,120]
[405094625,1770793843866,-1738.1,0.00038904,120]
[405094626,1770793843875,-500.0,0.00038904,53]
[405094627,1770793843885,-500.0,0.00038904,120]
[405094628,1770793843894,-500.0,0.00038904,2]
[405094629,1770793843904,-500.0,0.00038904,120]
[405094630,1770793843914,-500.0,0.00038904,120]
[405094631,1770793843923,-500.0,0.00038904,120]
[405094632,1770793843933,-500.0,0.00038904,120]
[405094633,1770793843943,-731.74,0.00038904,120]
[405094634,1770793843953,-500.0,0.00038904,120]
[405094635,1770793843963,-500.0,0.00038904,120]
[405094637,1770793843973,-500.0,0.00038904,120]
[405094638,1770793843983,-186.84096987,0.00038904,14]
[405094639,1770793843993,-519.95,0.00038904,120]
[405094640,1770793844002,-513.83,0.00038904,120]
[405094643,1770793844012,-500.0,0.00038904,120]
[405094646,1770793844023,-500.0,0.00038904,120]
[405094648,1770793844032,-500.0,0.00038904,120]
[405094649,1770793844042,-643.03381296,0.00038904,120]
[405094651,1770793844051,-723.59,0.00038904,120]
[405094653,1770793844061,-500.0,0.00038904,120]
[405094654,1770793844071,-500.0,0.00038904,120]
[405094655,1770793844080,-500.0,0.00038904,120]
[405094656,1770793844089,-500.0,0.00038904,120]
[405094657,1770793844099,-500.0,0.00038904,2]
[405094659,1770793844108,-919.03,0.00038904,120]
[405094660,1770793844117,-500.0,0.00038904,120]
[405094661,1770793844126,-851.78,0.00038904,120]
[405094662,1770793844135,-500.0,0.00038904,120]
[405094663,1770793844144,-500.0,0.00038904,120]
[405094664,1770793844155,-500.0,0.00038904,120]
[405094665,1770793844164,-500.0,0.00038904,120]
[405094666,1770793844174,-630.75803069,0.00038904,120]
[405094667,1770793844183,-705.77,0.00038904,120]
[405094668,1770793844198,-500.0,0.00038904,7]
[405094669,1770793844207,-500.0,0.00038904,120]
[405094670,1770793844216,-799.4,0.00038904,120]
[405094671,1770793844230,-500.0,0.00038904,120]
[405094672,1770793844240,-832.03,0.00038904,120]
[405094673,1770793844250,-500.0,0.00038904,120]
[405094674,1770793844259,-500.0,0.00038904,120]
[405094675,1770793844270,-14665.39,0.00038904,120]
[405094676,1770793844279,-182.18395762,0.00038904,120]
[405094677,1770793844289,-505.48107783,0.00038904,120]
[405094678,1770793844298,-500.0,0.00038904,120]
[405094679,1770793844307,-500.0,0.00038904,120]
[405094680,1770793844317,-14163.98,0.00038904,120]
[405094681,1770793844327,-500.0,0.00038904,8]
[405094682,1770793844337,-558.56,0.00038904,120]
[405094683,1770793844347,-4342.85,0.00038904,21]
[405094684,1770793844357,-1856.36,0.00038904,120]
[405094685,1770793844367,-500.0,0.00038904,120]
[405094686,1770793844377,-5194.04,0.00038904,2]
[405094687,1770793844386,-500.0,0.00038904,120]
[405094688,1770793844396,-500.0,0.00038904,120]
[405094689,1770793844406,-500.0,0.00038904,120]
[405094690,1770793844416,-1000.0,0.00038904,2]
[405094691,1770793844426,-500.0,0.00038904,120]
[405094692,1770793844436,-389.2694405,0.00038904,120]
[405094693,1770793844447,-524.65,0.00038904,120]
[405094694,1770793844459,-500.0,0.00038904,120]
[405094695,1770793844468,-245.62360922,0.00038904,120]
[405094696,1770793844477,-500.0,0.00038904,120]
[405094697,1770793844487,-63868.37,0.00038904,20]
[405094698,1770793844499,-297.08169937,0.00038904,120]
[405094699,1770793844509,-500.0,0.00038904,120]
[405094700,1770793844519,-500.0,0.00038904,120]
[405094701,1770793844528,-798.59,0.00038904,120]
[405094702,1770793844538,-500.0,0.00038904,120]
[405094703,1770793844547,-500.0,0.00038904,120]
[405094704,1770793844558,-465.48427544,0.00038904,120]
[405094705,1770793844568,-730.1,0.00038904,30]
[405094706,1770793844577,-500.0,0.00038904,120]
[405094707,1770793844587,-609.15,0.00038904,120]
[405094708,1770793844596,-2499.89,0.00038904,120]
[405094709,1770793844606,-332.24,0.00038904,120]
[405094710,1770793844615,-3195.37,0.00038904,2]
[405094711,1770793844686,-799.25,0.00038904,120]
[405094712,1770793844696,-500.0,0.00038904,120]
[405094713,1770793844707,-606.50144103,0.0003899,2]
[405094714,1770793844716,-375541.13199408,0.00039,2]
[405094715,1770793844921,-40.5873719,0.00036962,2]
[405094716,1770793844932,-701.80178015,0.00036962,2]
[405094717,1770793844941,-549.0,0.00038089,30]
[405094718,1770793844951,-3829.29412167,0.00039,2]
[405094719,1770793845030,-3e-08,0.00039,2]
[405094720,1770793845070,5000.0,0.00024953,2]
[405094725,1770793847019,-198.10916604,0.00038356,2]
[405094726,1770793847038,-12832.22,0.00038356,120]
[405094727,1770793847048,-288.89083396,0.00038356,2]
[405094728,1770793847058,-487.0,0.00038356,2]
[405094729,1770793847067,-487.0,0.00038356,2]
[405094730,1770793847077,-487.0,0.00038356,2]
[405094731,1770793847086,-487.0,0.00038356,2]
[405094732,1770793847096,-487.0,0.00038356,2]
[405094733,1770793847106,-487.0,0.00038356,2]
[405094734,1770793847116,-487.0,0.00038356,2]
[405094735,1770793847126,-487.0,0.00038356,2]
[405094736,1770793847135,-487.0,0.00038356,2]
[405094737,1770793847145,-904.83,0.00038356,2]
[405094738,1770793847154,-5312.21897255,0.0003863,120]
[405094739,1770793848217,-6947.54410698,0.0003863,120]
[405094744,1770793848293,-572.45692047,0.0003863,120]
[405094746,1770793848302,-12832.22,0.00038904,120]
[405094747,1770793848312,-49644.40307546,0.00039,2]
[405094749,1770793863165,5000.0,0.00024953,2]
[405094750,1770793863777,1738.39230284,0.00025583,2]
[405094751,1770793864050,1409.03616832,0.00026022,2]
[405094752,1770793886304,500.0,0.00013699,2]
[405094753,1770793886355,1121.97237761,0.00014247,2]
[405094761,1770794033518,303.10001603,0.000189,2]
[405094762,1770794033555,303.10001607,0.00019089,2]
[405094765,1770794170275,500.0,0.00013699,2]
[405094766,1770794170323,1000.0,0.00014247,2]
[405094767,1770794170382,500.0,0.00014795,2]
[405094768,1770794339394,409.91665482,0.000237,2]
[405094779,1770794461842,5000.0,0.000237,2]
[405094780,1770794484249,5000.0,0.000237,2]
[405094781,1770794506335,5000.0,0.000237,2]
[405094782,1770794528869,5000.0,0.000237,2]
[405094783,1770794551113,5000.0,0.000237,2]
[405094784,1770794573950,5000.0,0.000237,2]
[405094785,1770794595980,5000.0,0.000237,2]
[405094786,1770794618766,5000.0,0.000237,2]
[405094787,1770794625280,27055.9686206,0.00023132,2]
[405094788,1770794641011,5000.0,0.000237,2]
[405094789,1770794663113,5000.0,0.000237,2]
[405094790,1770794685159,5000.0,0.000237,2]
[405094791,1770794690545,10000.0,0.00023132,2]
[405094792,1770794707964,5000.0,0.000237,2]
[405094793,1770794730660,5000.0,0.000237,2]
[405094794,1770794753244,5000.0,0.000237,2]
[405094795,1770794775193,5000.0,0.000237,2]
[405094796,1770794797896,5000.0,0.000237,2]
[405094797,1770794820037,5000.0,0.000237,2]
[405094798,1770794826137,-1977.22738769,0.00023885,2]
[405094799,1770794831082,-3483.78932389,0.00023885,2]
[405094800,1770794831239,-166.66666668,0.00023986,2]
[405094801,1770794831262,-179.26076209,0.00024036,2]
[405094802,1770794831285,-300.0,0.00024085,2]
[405094803,1770794831305,-300.0,0.00024085,2]
[405094804,1770794831326,-150.0,0.00024085,2]
[405094805,1770794831348,-300.0,0.00024086,2]
[405094806,1770794831369,-300.0,0.00024086,2]
[405094807,1770794831388,-300.0,0.00024086,2]
[405094808,1770794831409,-1200.0,0.00024086,2]
[405094809,1770794831431,-4671.86345174,0.00024088,2]
[405094810,1770794831458,-267.81814968,0.00024088,2]
[405094811,1770794834965,2523.52712732,0.000237,2]
[405094812,1770794843002,5000.0,0.000237,2]
[405094813,1770794865274,5000.0,0.000237,2]
[405094814,1770794887292,5000.0,0.000237,2]
[405094815,1770794895177,5000.0,0.000237,2]
[405094816,1770794910016,5000.0,0.000237,2]
[405094818,1770794920597,19746.41281722,0.0002,30]
[405094819,1770794932832,5000.0,0.000237,2]
[405094820,1770794946128,-3000.22205338,0.00024088,2]
[405094821,1770794946153,-175.67554685,0.00024106,2]
[405094822,1770794946175,-300.0,0.00024123,2]
[405094823,1770794946196,-445.26201576,0.00024124,2]
[405094824,1770794946217,-500.0,0.00024124,2]
[405094825,1770794946239,-501.76292103,0.00024124,2]
[405094826,1770794946260,-501.41960638,0.00024124,2]
[405094827,1770794946283,-500.0,0.00024124,2]
[405094828,1770794946305,-500.0,0.00024124,2]
[405094829,1770794946330,-241.05968807,0.00024124,2]
[405094830,1770794951094,-1550.24149301,0.00024024,2]
[405094831,1770794952113,-157.22775311,0.00024024,2]
[405094832,1770794952138,-258.94031193,0.00024124,2]
[405094833,1770794952161,-500.0,0.00024124,2]
[405094834,1770794952182,-500.0,0.00024124,2]